bitfinex/quotes_SOLUSD_20230116
["timestamp","ask_amount","ask_price","bid_price","bid_amount"]
[1673840855523,17.0,23.274,23.258,20.0]
[1673840855705,20.0,23.273,23.258,20.0]
[1673840856229,20.0,23.279,23.258,20.0]
[1673840856434,17.0,23.278,23.258,20.0]
[1673840856650,20.0,23.277,23.258,20.0]
[1673840856861,17.0,23.276,23.258,20.0]
[1673840857297,20.0,23.275,23.258,20.0]
[1673840857809,20.0,23.275,23.245,20.0]
[1673840858020,17.0,23.274,23.245,20.0]
[1673840858230,20.0,23.273,23.245,20.0]
[1673840858967,20.0,23.279,23.258,20.0]
[1673840859177,17.0,23.278,23.258,20.0]
[1673840859399,20.0,23.277,23.258,20.0]
[1673840859610,17.0,23.276,23.258,20.0]
[1673840859826,20.0,23.275,23.258,20.0]
[1673840860042,17.0,23.274,23.258,20.0]
[1673840860346,20.0,23.273,23.258,20.0]
[1673840860556,20.0,23.275,23.258,20.0]
[1673840860962,20.0,23.279,23.258,20.0]
[1673840861719,17.0,23.278,23.258,20.0]
[1673840861923,20.0,23.277,23.258,20.0]
[1673840862244,17.0,23.276,23.245,20.0]
[1673840862435,40.0,23.275,23.245,20.0]
[1673840862647,17.0,23.274,23.245,20.0]
[1673840862857,20.0,23.275,23.245,20.0]
[1673840863066,20.0,23.279,23.258,20.0]
[1673840864113,20.0,23.279,23.245,20.0]
[1673840864353,17.0,23.278,23.252,55.84521261]
[1673840864660,20.0,23.276,23.252,20.0]
[1673840864969,20.0,23.277,23.252,20.0]
[1673840864970,20.0,23.275,23.252,20.0]
[1673840865299,20.0,23.277,23.258,20.0]
[1673840865488,17.0,23.276,23.258,20.0]
[1673840865693,20.0,23.275,23.258,20.0]
[1673840866337,20.0,23.277,23.258,20.0]
[1673840866958,17.0,23.276,23.258,20.0]
[1673840867287,20.0,23.275,23.258,20.0]
[1673840868865,20.0,23.275,23.259,17.0]
[1673840869052,3.71218,23.287,23.259,17.0]
[1673840869267,23.71218,23.287,23.26,20.0]
[1673840869480,3.71218,23.287,23.261,17.0]
[1673840869697,3.71218,23.287,23.262,20.0]
[1673840870119,26.95709992,23.287,23.262,20.0]
[1673840870311,20.0,23.286,23.263,17.0]
[1673840870523,20.0,23.289,23.263,17.0]
[1673840870939,20.0,23.288,23.262,20.0]
[1673840871151,20.0,23.287,23.262,20.0]
[1673840871367,23.46,23.28,23.26,20.0]
[1673840871683,37.0,23.279,23.26,20.0]
[1673840872640,20.0,23.279,23.26,20.0]
[1673840872853,20.0,23.279,23.261,17.0]
[1673840873268,20.0,23.279,23.262,20.0]
[1673840873586,25.18,23.28,23.262,20.0]
[1673840873806,20.0,23.279,23.26,20.0]
[1673840874516,17.0,23.278,23.252,20.0]
[1673840874740,20.0,23.277,23.252,20.0]
[1673840874956,17.0,23.276,23.252,20.0]
[1673840875165,20.0,23.275,23.252,20.0]
[1673840875356,25.18,23.27,23.23,25.18]
[1673840875567,20.0,23.269,23.245,117.4955]
[1673840875811,37.0,23.268,23.245,117.4955]
[1673840876532,20.0,23.259,23.237,38.87164818]
[1673840876743,25.18,23.25,23.233,108.2603]
[1673840877263,20.0,23.249,23.234,20.0]
[1673840877811,20.0,23.256,23.234,20.0]
[1673840878022,20.0,23.258,23.234,20.0]
[1673840878228,17.0,23.257,23.234,20.0]
[1673840878432,20.0,23.256,23.234,20.0]
[1673840878753,20.0,23.258,23.234,20.0]
[1673840878965,20.0,23.259,23.235,17.0]
[1673840879281,17.0,23.258,23.235,17.0]
[1673840879474,20.0,23.257,23.237,20.0]
[1673840879691,20.0,23.259,23.238,17.0]
[1673840880212,20.0,23.259,23.24,25.09]
[1673840880423,20.0,23.269,23.241,17.0]
[1673840880650,25.18,23.27,23.241,17.0]
[1673840880839,25.18,23.27,23.242,20.0]
[1673840881164,20.0,23.269,23.242,20.0]
[1673840881483,17.0,23.268,23.243,116.257]
[1673840881695,17.0,23.268,23.244,20.0]
[1673840881892,17.0,23.268,23.244,133.8211]
[1673840882102,17.0,23.269,23.244,133.8211]
[1673840882315,20.0,23.268,23.244,133.8211]
[1673840882527,20.71218,23.267,23.244,133.8211]
[1673840882743,20.0,23.266,23.244,133.8211]
[1673840882937,17.0,23.265,23.244,133.8211]
[1673840883144,20.0,23.264,23.244,133.8211]
[1673840883358,17.0,23.263,23.244,133.8211]
[1673840883580,20.0,23.264,23.244,133.8211]
[1673840883896,3.71218,23.267,23.244,133.8211]
[1673840884324,25.23,23.26,23.237,54.7456421]
[1673840884635,25.23,23.25,23.235,119.1703]
[1673840884950,20.0,23.249,23.231,108.0393]
[1673840885259,46.88491992,23.249,23.231,108.0393]
[1673840885478,17.0,23.248,23.231,108.0393]
[1673840885669,20.0,23.249,23.231,108.0393]
[1673840886106,20.0,23.249,23.232,20.0]
[1673840886716,20.0,23.255,23.232,20.0]
[1673840887151,20.0,23.255,23.231,108.0393]
[1673840887360,25.02,23.25,23.231,108.0393]
[1673840887569,20.0,23.249,23.228,110.1443]
[1673840887989,20.0,23.249,23.229,20.0]
[1673840888722,20.0,23.254,23.23,25.19]
[1673840888926,20.0,23.258,23.232,20.0]
[1673840889141,25.23,23.25,23.231,115.1421]
[1673840889358,20.0,23.249,23.231,115.1421]
[1673840889572,20.21663954,23.25,23.232,20.0]
[1673840890306,26.88491992,23.257,23.232,20.0]
[1673840890518,20.0,23.266,23.233,37.0]
[1673840890740,46.88491992,23.266,23.234,20.0]
[1673840890932,46.88491992,23.266,23.235,37.0]
[1673840891148,46.88491992,23.266,23.236,20.0]
[1673840891368,20.0,23.265,23.237,17.0]
[1673840891767,20.0,23.265,23.241,20.0]
[1673840892099,20.0,23.269,23.243,20.0]
[1673840892504,20.0,23.269,23.244,17.0]
[1673840892714,20.0,23.274,23.245,20.0]
[1673840892944,20.0,23.274,23.246,17.0]
[1673840893130,25.02,23.27,23.246,17.0]
[1673840893347,37.0,23.269,23.245,17.0]
[1673840893556,20.0,23.268,23.245,17.0]
[1673840893763,37.0,23.267,23.245,17.0]
[1673840893972,37.0,23.267,23.245,37.0]
[1673840894621,25.02,23.27,23.245,37.0]
[1673840894816,20.0,23.269,23.245,37.0]
[1673840895040,20.0,23.269,23.246,20.0]
[1673840895251,20.0,23.269,23.247,17.0]
[1673840895861,20.0,23.269,23.248,20.0]
[1673840896072,20.0,23.269,23.25,24.98]
[1673840896301,20.0,23.275,23.25,24.98]
[1673840896510,39.31077355,23.27,23.251,17.0]
[1673840896824,20.0,23.269,23.251,17.0]
[1673840897057,20.0,23.269,23.249,20.0]
[1673840897058,20.0,23.269,23.25,17.0]
[1673840898192,20.0,23.269,23.251,20.0]
[1673840898518,20.0,23.279,23.252,17.0]
[1673840899334,26.88491992,23.288,23.252,17.0]
[1673840899335,25.23,23.29,23.252,17.0]
[1673840899671,26.88491992,23.283,23.26,25.23]
[1673840899862,25.23,23.29,23.261,153.2386]
[1673840900389,25.23,23.29,23.262,95.49871329]
[1673840900594,52.11491992,23.29,23.262,41.77869771]
[1673840900804,52.11491992,23.29,23.262,20.0]
[1673840900805,20.0,23.288,23.262,20.0]
[1673840901012,20.0,23.287,23.262,20.0]
[1673840901441,20.0,23.287,23.263,17.0]
[1673840901759,20.0,23.289,23.264,20.0]
[1673840901974,25.02,23.29,23.265,17.0]
[1673840902186,25.02,23.29,23.264,20.0]
[1673840902403,20.0,23.289,23.264,20.0]
[1673840902593,20.0,23.287,23.264,20.0]
[1673840902799,37.0,23.286,23.264,20.0]
[1673840903978,37.0,23.286,23.262,20.0]
[1673840904166,37.0,23.286,23.263,17.0]
[1673840904382,37.0,23.286,23.262,17.0]
[1673840904802,37.0,23.286,23.263,20.0]
[1673840905029,37.0,23.286,23.264,17.0]
[1673840905342,20.0,23.286,23.265,20.0]
[1673840905659,20.0,23.289,23.266,17.0]
[1673840905849,25.31,23.3,23.27,25.23]
[1673840906062,25.31,23.3,23.271,17.0]
[1673840906267,20.0,23.299,23.272,20.0]
[1673840906502,20.0,23.299,23.273,17.0]
[1673840906698,20.0,23.299,23.273,125.9378]
[1673840906907,25.31,23.3,23.274,20.0]
[1673840907112,25.31,23.3,23.273,125.9378]
[1673840907113,25.31,23.3,23.273,108.9378]
[1673840907324,20.0,23.289,23.273,108.9378]
[1673840907531,25.02,23.29,23.273,108.9378]
[1673840908269,20.0,23.289,23.273,108.9378]
[1673840909117,20.0,23.289,23.274,17.0]
[1673840909436,20.0,23.297,23.274,17.0]
[1673840909854,41.67348779,23.296,23.275,20.0]
[1673840910058,25.31,23.3,23.276,17.0]
[1673840911096,17.0,23.299,23.273,108.9378]
[1673840911308,25.23,23.29,23.273,108.9378]
[1673840911739,25.23,23.29,23.274,20.0]
[1673840912171,20.0,23.298,23.274,20.0]
[1673840912361,20.0,23.299,23.274,20.0]
[1673840912907,20.0,23.299,23.275,17.0]
[1673840913107,20.0,23.299,23.276,20.0]
[1673840913331,20.0,23.299,23.277,17.0]
[1673840914158,20.0,23.305,23.277,17.0]
[1673840914371,20.0,23.303,23.277,17.0]
[1673840914793,20.0,23.305,23.278,20.0]
[1673840914794,20.0,23.302,23.278,20.0]
[1673840915116,25.23,23.3,23.279,20.0]
[1673840915333,20.0,23.299,23.279,20.0]
[1673840915636,46.88491992,23.299,23.279,20.0]
[1673840915850,25.23,23.31,23.279,20.0]
[1673840916048,20.0,23.305,23.279,20.0]
[1673840916259,20.0,23.303,23.279,20.0]
[1673840916486,20.0,23.302,23.28,17.0]
[1673840916799,20.0,23.305,23.28,17.0]
[1673840916993,17.0,23.304,23.28,17.0]
[1673840918056,25.23,23.3,23.274,20.0]
[1673840918265,25.23,23.3,23.278,48.67279854]
[1673840918463,20.0,23.298,23.273,108.9378]
[1673840918665,20.0,23.297,23.273,108.9378]
[1673840918875,37.0,23.296,23.273,108.9378]
[1673840919090,25.23,23.3,23.274,20.0]
[1673840920151,25.23,23.3,23.275,17.0]
[1673840920369,25.23,23.3,23.276,20.0]
[1673840920586,25.23,23.3,23.277,17.0]
[1673840921402,17.0,23.299,23.278,108.89281412]
[1673840921610,20.0,23.297,23.278,108.89281412]
[1673840921833,17.0,23.296,23.274,20.0]
[1673840922030,25.23,23.3,23.274,20.0]
[1673840922245,20.0,23.305,23.274,41.46196354]
[1673840922566,20.0,23.304,23.274,41.46196354]
[1673840922781,20.0,23.304,23.276,20.0]
[1673840922977,20.0,23.304,23.278,20.0]
[1673840923523,20.0,23.304,23.279,17.0]
[1673840923711,17.0,23.303,23.279,17.0]
[1673840924051,20.0,23.302,23.28,25.23]
[1673840924370,17.0,23.301,23.282,20.0]
[1673840924550,20.0,23.302,23.283,17.0]
[1673840924766,20.0,23.306,23.284,20.0]
[1673840924986,20.0,23.306,23.286,20.0]
[1673840925186,20.0,23.306,23.284,20.0]
[1673840925400,20.0,23.306,23.285,17.0]
[1673840926238,17.0,23.305,23.285,17.0]
[1673840926449,20.0,23.303,23.285,17.0]
[1673840926663,20.0,23.304,23.285,17.0]
[1673840926860,17.0,23.303,23.285,17.0]
[1673840927289,20.0,23.302,23.285,17.0]
[1673840928972,17.0,23.301,23.283,230.2616]
[1673840929183,20.0,23.3,23.283,230.2616]
[1673840929393,17.0,23.299,23.283,230.2616]
[1673840929619,20.0,23.298,23.283,230.2616]
[1673840929824,17.0,23.297,23.27,133.6303]
[1673840930036,17.0,23.297,23.277,115.9099]
[1673840930037,20.0,23.296,23.277,115.9099]
[1673840930452,20.0,23.296,23.278,17.0]
[1673840932441,20.0,23.296,23.279,20.0]
[1673840932976,20.0,23.296,23.28,17.0]
[1673840934762,20.0,23.299,23.28,17.0]
[1673840934972,17.0,23.298,23.28,17.0]
[1673840935184,20.0,23.297,23.28,17.0]
[1673840936137,17.0,23.296,23.279,20.0]
[1673840936352,20.0,23.295,23.279,20.0]
[1673840938336,20.0,23.308,23.281,20.0]
[1673840938549,20.0,23.307,23.282,17.0]
[1673840938873,20.0,23.308,23.282,17.0]
[1673840939086,20.0,23.308,23.283,119.6981]
[1673840939289,20.0,23.308,23.284,37.0]
[1673840939486,17.0,23.307,23.284,37.0]
[1673840939689,20.0,23.306,23.284,37.0]
[1673840939902,17.0,23.305,23.284,37.0]
[1673840940214,20.0,23.304,23.284,37.0]
[1673840940430,17.0,23.303,23.284,37.0]
[1673840940973,20.0,23.302,23.284,37.0]
[1673840941185,17.0,23.301,23.284,17.0]
[1673840941396,20.0,23.302,23.284,37.0]
[1673840942437,17.0,23.301,23.284,37.0]
[1673840942859,20.0,23.3,23.284,37.0]
[1673840944853,20.0,23.3,23.285,20.0]
[1673840945070,20.0,23.308,23.287,20.0]
[1673840945287,17.0,23.307,23.287,20.0]
[1673840945493,17.0,23.308,23.287,20.0]
[1673840945707,20.0,23.307,23.287,20.0]
[1673840946021,17.0,23.306,23.287,20.0]
[1673840946237,20.0,23.305,23.287,20.0]
[1673840946441,17.0,23.304,23.287,20.0]
[1673840946866,20.0,23.303,23.285,20.0]
[1673840947078,20.0,23.303,23.286,17.0]
[1673840948133,110.9025,23.313,23.286,17.0]
[1673840948330,20.0,23.312,23.288,20.0]
[1673840948537,20.0,23.312,23.289,17.0]
[1673840948959,20.0,23.312,23.29,20.0]
[1673840949170,20.0,23.312,23.291,17.0]
[1673840949588,17.0,23.311,23.291,17.0]
[1673840949799,20.0,23.31,23.291,17.0]
[1673840950015,20.0,23.31,23.292,20.0]
[1673840950220,134.2015,23.318,23.293,17.0]
[1673840950440,134.2015,23.318,23.294,20.0]
[1673840950654,134.2015,23.318,23.295,17.0]
[1673840951169,20.0,23.318,23.297,20.0]
[1673840951598,17.0,23.317,23.297,20.0]
[1673840951916,20.0,23.316,23.298,17.0]
[1673840952320,20.0,23.317,23.297,115.2681]
[1673840952528,20.0,23.316,23.297,115.2681]
[1673840952959,26.88491992,23.315,23.297,115.2681]
[1673840953165,37.0,23.314,23.297,115.2681]
[1673840953382,57.0,23.314,23.297,115.2681]
[1673840953793,57.0,23.314,23.29,24.98]
[1673840954007,57.0,23.314,23.29,111.9722]
[1673840954860,37.0,23.314,23.29,111.9722]
[1673840955074,37.0,23.314,23.291,20.0]
[1673840955272,37.0,23.314,23.292,17.0]
[1673840958967,37.0,23.314,23.293,20.0]
[1673840959173,20.0,23.314,23.295,20.0]
[1673840959384,20.0,23.314,23.296,126.9815]
[1673840959701,20.0,23.319,23.296,109.9815]
[1673840959919,20.0,23.318,23.296,109.9815]
[1673840960311,26.88491992,23.317,23.296,109.9815]
[1673840960521,20.0,23.316,23.296,109.9815]
[1673840960735,20.0,23.315,23.296,109.9815]
[1673840961061,63.88491992,23.314,23.296,109.9815]
[1673840961466,37.0,23.314,23.296,109.9815]
[1673840964330,63.88491992,23.314,23.296,109.9815]
[1673840964515,20.0,23.313,23.296,109.9815]
[1673840964739,37.0,23.312,23.296,109.9815]
[1673840965176,20.0,23.311,23.296,109.9815]
[1673840965490,20.0,23.309,23.296,109.9815]
[1673840965702,20.0,23.308,23.296,109.9815]
[1673840966650,20.0,23.308,23.29,111.9722]
[1673840966847,20.0,23.308,23.291,17.0]
[1673840967374,17.0,23.307,23.29,111.9722]
[1673840967591,20.0,23.306,23.281,20.0]
[1673840967796,17.0,23.305,23.283,238.6443]
[1673840968010,20.0,23.304,23.283,238.6443]
[1673840968211,17.0,23.303,23.284,20.0]
[1673840968427,20.0,23.302,23.284,20.0]
[1673840968643,17.0,23.301,23.284,20.0]
[1673840968840,20.0,23.3,23.284,20.0]
[1673840974007,20.0,23.3,23.283,238.6443]
[1673840974224,17.0,23.299,23.283,238.6443]
[1673840974415,20.0,23.298,23.283,238.6443]
[1673840974629,17.0,23.297,23.283,238.6443]
[1673840975040,17.0,23.299,23.283,238.6443]
[1673840975265,20.0,23.298,23.283,238.6443]
[1673840975474,17.0,23.297,23.283,238.6443]
[1673840975801,20.0,23.296,23.283,238.6443]
[1673840977045,20.0,23.305,23.284,20.0]
[1673840977258,17.0,23.304,23.284,20.0]
[1673840977474,20.0,23.303,23.283,238.6443]
[1673840977686,17.0,23.302,23.283,238.6443]
[1673840977891,20.0,23.301,23.284,20.0]
[1673840978112,17.0,23.3,23.284,20.0]
[1673840978323,20.0,23.299,23.284,20.0]
[1673840978638,17.0,23.298,23.284,20.0]
[1673840978840,20.0,23.297,23.284,20.0]
[1673840979575,20.0,23.297,23.283,238.6443]
[1673840979900,17.0,23.296,23.283,238.6443]
[1673840980096,20.0,23.295,23.283,238.6443]
[1673840980429,17.0,23.294,23.283,238.6443]
[1673840980824,20.0,23.293,23.283,238.6443]
[1673840982734,20.0,23.298,23.283,238.6443]
[1673840982945,17.0,23.297,23.283,238.6443]
[1673840983157,20.0,23.296,23.283,238.6443]
[1673840983344,17.0,23.295,23.271,20.0]
[1673840983560,20.0,23.294,23.274,111.908]
[1673840983767,17.0,23.293,23.274,111.908]
[1673840983981,20.0,23.292,23.275,20.0]
[1673840984648,20.0,23.292,23.276,17.0]
[1673840984821,20.0,23.292,23.275,20.0]
[1673840985474,17.0,23.291,23.274,111.908]
[1673840985656,20.0,23.29,23.274,111.908]
[1673840985979,20.0,23.29,23.27,144.9903]
[1673840985980,20.0,23.288,23.27,108.4003]
[1673840986190,20.0,23.287,23.27,108.4003]
[1673840986412,17.0,23.286,23.27,108.4003]
[1673840986731,20.0,23.285,23.27,108.4003]
[1673840987576,20.0,23.285,23.271,20.0]
[1673840989999,16.62,23.29,23.271,20.0]
[1673840990315,37.0,23.289,23.271,20.0]
[1673840991051,37.0,23.289,23.27,108.4003]
[1673840991448,40.71218,23.289,23.262,20.0]
[1673840991664,20.0,23.288,23.26,20.0]
[1673840991889,37.0,23.287,23.26,20.0]
[1673840992291,20.0,23.286,23.26,20.0]
[1673840992497,37.0,23.285,23.26,20.0]
[1673840994208,16.75,23.28,23.26,20.0]
[1673840994392,37.0,23.279,23.26,20.0]
[1673840995567,37.0,23.279,23.259,116.9662]
[1673840995780,37.0,23.279,23.26,20.0]
[1673840995978,37.0,23.279,23.251,20.0]
[1673840996301,3.71218,23.278,23.252,113.7056]
[1673840996718,3.71218,23.278,23.258,20.0]
[1673840997757,16.75,23.27,23.252,155.01173187]
[1673840997967,17.0,23.269,23.252,113.7056]
[1673840998182,20.0,23.268,23.252,113.7056]
[1673840998396,17.0,23.267,23.252,113.7056]
[1673840998615,20.0,23.266,23.252,113.7056]
[1673840998909,17.0,23.265,23.252,113.7056]
[1673840999116,20.0,23.264,23.252,113.7056]
[1673840999344,17.0,23.263,23.252,113.7056]
[1673840999551,20.0,23.262,23.252,113.7056]
[1673840999770,17.0,23.261,23.252,113.7056]
[1673841000186,20.0,23.26,23.252,113.7056]
[1673841000834,20.0,23.26,23.244,138.4475]
[1673841001033,20.0,23.269,23.246,17.0]
[1673841001254,17.0,23.268,23.247,20.0]
[1673841001778,20.0,23.267,23.247,20.0]
[1673841001980,17.0,23.266,23.247,20.0]
[1673841002176,20.0,23.265,23.247,20.0]
[1673841002389,16.75,23.27,23.247,20.0]
[1673841002596,20.0,23.269,23.248,17.0]
[1673841002830,20.0,23.269,23.249,20.0]
[1673841003012,20.0,23.269,23.251,20.0]
[1673841003232,20.0,23.269,23.249,20.0]
[1673841003964,17.0,23.268,23.249,19.0]
[1673841004170,20.0,23.267,23.249,19.0]
[1673841004388,20.0,23.267,23.25,17.0]
[1673841004820,20.0,23.269,23.25,17.0]
[1673841005643,20.0,23.269,23.251,20.0]
[1673841005868,20.0,23.269,23.252,17.0]
[1673841006059,20.0,23.279,23.252,17.0]
[1673841006274,42.93,23.295,23.252,17.0]
[1673841006275,16.75,23.29,23.254,20.0]
[1673841006496,16.75,23.29,23.255,37.0]
[1673841006702,16.75,23.29,23.26,16.75]
[1673841006937,16.75,23.29,23.261,17.0]
[1673841007238,20.0,23.289,23.262,20.0]
[1673841007452,20.0,23.289,23.263,17.0]
[1673841007656,20.0,23.289,23.258,20.0]
[1673841007869,16.75,23.28,23.258,20.0]
[1673841009025,37.0,23.279,23.257,113.463]
[1673841009667,37.0,23.279,23.25,16.63]
[1673841009668,20.0,23.278,23.25,16.63]
[1673841009876,37.0,23.277,23.25,16.63]
[1673841010075,37.0,23.277,23.254,20.0]
[1673841010292,20.0,23.276,23.254,20.0]
[1673841010500,17.0,23.275,23.254,20.0]
[1673841010827,20.0,23.274,23.255,17.0]
[1673841011015,17.0,23.273,23.255,17.0]
[1673841011225,17.0,23.273,23.25,16.63]
[1673841011226,20.0,23.272,23.25,16.63]
[1673841011445,20.0,23.272,23.244,159.90946354]
[1673841011446,17.0,23.271,23.244,138.4475]
[1673841011880,20.0,23.27,23.244,138.4475]
[1673841012077,17.0,23.269,23.244,138.4475]
[1673841012289,20.0,23.268,23.244,138.4475]
[1673841012607,20.0,23.268,23.246,113.2995]
[1673841012608,20.0,23.266,23.246,113.2995]
[1673841012814,37.0,23.265,23.246,113.2995]
[1673841014196,37.0,23.265,23.247,20.0]
[1673841014931,20.0,23.265,23.247,20.0]
[1673841015136,20.0,23.269,23.247,20.0]
[1673841015353,20.0,23.269,23.248,17.0]
[1673841015535,20.0,23.269,23.249,20.0]
[1673841016908,17.0,23.268,23.249,20.0]
[1673841017118,20.0,23.267,23.249,20.0]
[1673841017328,17.0,23.266,23.249,20.0]
[1673841017535,20.0,23.265,23.249,20.0]
[1673841017758,16.62,23.27,23.249,20.0]
[1673841017959,20.0,23.269,23.25,17.0]
[1673841018395,20.0,23.269,23.251,20.0]
[1673841018598,20.0,23.277,23.252,17.0]
[1673841018807,20.0,23.276,23.252,17.0]
[1673841019136,20.0,23.276,23.251,20.0]
[1673841019337,17.0,23.275,23.251,20.0]
[1673841019548,20.0,23.274,23.251,20.0]
[1673841019740,37.0,23.273,23.251,20.0]
[1673841020797,32.58006447,23.273,23.251,20.0]
[1673841022073,32.58006447,23.273,23.249,20.0]
[1673841022287,16.75,23.27,23.244,118.4475]
[1673841022486,20.0,23.269,23.244,118.4475]
[1673841022700,20.0,23.268,23.244,118.4475]
[1673841022912,37.0,23.267,23.244,118.4475]
[1673841023540,37.0,23.267,23.247,20.0]
[1673841023764,37.0,23.267,23.248,17.0]
[1673841024506,20.0,23.267,23.249,20.0]
[1673841024695,20.0,23.269,23.25,17.0]
[1673841024901,17.0,23.268,23.25,17.0]
[1673841025334,20.0,23.267,23.25,17.0]
[1673841025874,17.0,23.266,23.249,20.0]
[1673841026055,20.0,23.265,23.249,20.0]
[1673841026266,20.0,23.267,23.249,20.0]
[1673841026481,20.0,23.267,23.251,20.0]
[1673841026801,20.0,23.269,23.251,20.0]
[1673841027021,20.0,23.277,23.252,17.0]
[1673841027229,20.0,23.278,23.253,20.0]
[1673841027437,20.0,23.278,23.254,17.0]
[1673841028062,20.0,23.278,23.256,20.0]
[1673841028277,17.0,23.277,23.256,20.0]
[1673841028590,17.0,23.277,23.255,117.3399]
[1673841028591,20.0,23.275,23.255,117.3399]
[1673841028804,20.0,23.273,23.255,117.3399]
[1673841029124,17.0,23.272,23.255,117.3399]
[1673841029334,20.0,23.27,23.255,117.3399]
[1673841029672,37.0,23.269,23.255,117.3399]
[1673841029868,37.0,23.269,23.24,16.79]
[1673841030174,40.71218,23.269,23.248,113.9442]
[1673841030364,20.0,23.268,23.248,113.9442]
[1673841030571,37.0,23.267,23.248,113.9442]
[1673841031419,20.0,23.266,23.248,113.9442]
[1673841031740,37.0,23.265,23.248,113.9442]
[1673841033017,20.0,23.264,23.248,113.9442]
[1673841033319,37.0,23.263,23.248,113.9442]
[1673841033965,16.75,23.26,23.248,113.9442]
[1673841034286,37.0,23.259,23.248,113.9442]
[1673841035118,37.0,23.259,23.244,118.4475]
[1673841035947,17.0,23.259,23.244,118.4475]
[1673841036376,20.0,23.258,23.244,118.4475]
[1673841036702,17.0,23.257,23.244,118.4475]
[1673841036914,20.0,23.256,23.244,118.4475]
[1673841037228,17.0,23.255,23.244,118.4475]
[1673841037446,20.0,23.254,23.244,118.4475]
[1673841038176,20.0,23.259,23.244,118.4475]
[1673841038365,132.2587,23.269,23.245,20.0]
[1673841038366,112.2587,23.269,23.245,20.0]
[1673841038790,20.0,23.268,23.245,20.0]
[1673841039849,20.71218,23.267,23.244,118.4475]
[1673841040065,16.75,23.26,23.244,118.4475]
[1673841040277,37.0,23.259,23.244,118.4475]
[1673841041202,20.0,23.259,23.245,20.0]
[1673841041413,3.71218,23.266,23.245,20.0]
[1673841041623,16.62,23.26,23.244,118.4475]